bitfinex/quotes_BTCUSD_20240819
["timestamp","ask_amount","ask_price","bid_price","bid_amount"]
[1724051565716,0.004822,58844.0,58843.0,2.089802]
[1724051566499,0.007822,58844.0,58843.0,2.089802]
[1724051567283,0.007822,58844.0,58843.0,1.851881]
[1724051567484,0.087722,58844.0,58839.0,0.0009042]
[1724051567702,0.05090445,58840.0,58839.0,0.0009042]
[1724051568157,0.07632555,58841.0,58839.0,0.0009042]
[1724051568468,0.07632555,58841.0,58839.0,0.1198722]
[1724051568909,0.118966,58840.0,58839.0,0.0009042]
[1724051569112,0.31835096,58840.0,58839.0,0.0009042]
[1724051569305,0.68072817,58840.0,58839.0,0.0009042]
[1724051569936,0.80793742,58840.0,58839.0,0.0019042]
[1724051570313,0.80793742,58840.0,58839.0,0.0009042]
[1724051570542,0.80793742,58840.0,58839.0,0.0019042]
[1724051571742,0.80793742,58840.0,58839.0,0.0009042]
[1724051571743,0.80607236,58840.0,58839.0,0.0009042]
[1724051572078,0.80707236,58840.0,58839.0,0.0009042]
[1724051572559,0.80707236,58840.0,58839.0,0.0029042]
[1724051573121,0.67973986,58840.0,58839.0,0.0009042]
[1724051575160,0.3441893,58840.0,58839.0,0.0009042]
[1724051576363,0.5821223,58840.0,58839.0,0.0009042]
[1724051579178,1.00680315,58840.0,58839.0,0.0009042]
[1724051579628,1.15960215,58840.0,58839.0,0.0009042]
[1724051579851,1.00680315,58840.0,58839.0,0.0009042]
[1724051580054,1.15960215,58840.0,58839.0,0.0009042]
[1724051580257,1.00680315,58840.0,58839.0,0.0009042]
[1724051580432,1.53857027,58840.0,58839.0,0.0009042]
[1724051580666,1.72964483,58840.0,58839.0,0.0009042]
[1724051581877,1.72864483,58840.0,58839.0,0.0009042]
[1724051582078,1.73264483,58840.0,58839.0,0.0009042]
[1724051582283,1.90956397,58840.0,58839.0,0.0009042]
[1724051582491,1.72864483,58840.0,58839.0,0.0009042]
[1724051582922,1.75164483,58840.0,58839.0,0.0029042]
[1724051583094,1.73964483,58840.0,58839.0,0.0019042]
[1724051583297,1.91151985,58840.0,58839.0,0.0019042]
[1724051583499,1.91151985,58840.0,58839.0,0.0009042]
[1724051583500,1.90051985,58840.0,58839.0,0.0009042]
[1724051583702,1.91251985,58840.0,58839.0,0.0019042]
[1724051583863,1.76048734,58840.0,58839.0,0.0019042]
[1724051584062,1.59261229,58840.0,58839.0,0.0019042]
[1724051584776,1.60561229,58840.0,58839.0,0.0029042]
[1724051588433,1.60613106,58840.0,58839.0,0.0029042]
[1724051590202,0.891607,58837.0,58836.0,0.0004092]
[1724051590410,1.21243012,58837.0,58836.0,0.0004092]
[1724051591437,1.55464846,58837.0,58836.0,0.0004092]
[1724051591845,1.58074846,58837.0,58836.0,0.0004092]
[1724051592061,1.91869346,58837.0,58836.0,0.0004092]
[1724051592266,1.91869346,58837.0,58836.0,0.0014092]
[1724051592267,2.11233373,58837.0,58836.0,0.0014092]
[1724051592470,2.2840855,58837.0,58836.0,0.0014092]
[1724051592631,2.2940855,58837.0,58836.0,0.0024092]
[1724051593024,2.2840855,58837.0,58836.0,0.0014092]
[1724051593254,2.2720855,58837.0,58836.0,0.0004092]
[1724051593446,1.87638873,58837.0,58836.0,0.0014092]
[1724051593670,1.89038873,58837.0,58836.0,0.0024092]
[1724051594135,2.12833373,58837.0,58836.0,0.0024092]
[1724051595465,2.11880752,58837.0,58836.0,0.0024092]
[1724051596221,1.87077679,58837.0,58836.0,0.0024092]
[1724051597498,1.87090846,58837.0,58836.0,0.0024092]
[1724051598349,1.79100846,58837.0,58836.0,0.0024092]
[1724051598478,1.65570139,58837.0,58836.0,0.0024092]
[1724051598655,1.5031688,58837.0,58836.0,0.0024092]
[1724051598861,1.60573875,58837.0,58836.0,0.0024092]
[1724051599066,1.6557283,58837.0,58836.0,0.0024092]
[1724051600093,0.356959,58830.0,58829.0,0.077]
[1724051600325,0.80092651,58830.0,58829.0,0.077]
[1724051600495,0.9127878,58830.0,58829.0,0.077]
[1724051600706,0.80192651,58830.0,58829.0,0.077]
[1724051601615,0.80692651,58830.0,58829.0,0.077]
[1724051601868,0.6798148,58830.0,58829.0,0.077]
[1724051602070,0.6848148,58830.0,58829.0,0.077]
[1724051602450,0.6848148,58830.0,58829.0,0.0779042]
[1724051602661,0.81192651,58830.0,58829.0,0.0779042]
[1724051602892,0.91741586,58830.0,58829.0,0.0779042]
[1724051603129,0.91741586,58830.0,58829.0,0.0009042]
[1724051603876,0.91841586,58830.0,58829.0,0.0009042]
[1724051604115,0.79130415,58830.0,58829.0,0.0009042]
[1724051604375,0.79030415,58830.0,58829.0,0.0009042]
[1724051604722,1.03027715,58830.0,58829.0,0.0009042]
[1724051604840,1.03127715,58830.0,58829.0,0.0009042]
[1724051605052,1.03327715,58830.0,58829.0,0.0009042]
[1724051605251,1.08327159,58830.0,58829.0,0.0009042]
[1724051605481,1.02827715,58830.0,58829.0,0.0009042]
[1724051605695,0.9227878,58830.0,58829.0,0.0009042]
[1724051606315,1.04991279,58830.0,58829.0,0.0009042]
[1724051607099,0.81193979,58830.0,58829.0,0.1438042]
[1724051607303,0.9227878,58830.0,58829.0,0.1438042]
[1724051607863,1.04991279,58830.0,58829.0,0.1438042]
[1724051608088,0.9227878,58830.0,58829.0,0.1438042]
[1724051608318,1.04991279,58830.0,58829.0,0.1438042]
[1724051608947,1.17900047,58830.0,58829.0,0.1438042]
[1724051609078,1.05187548,58830.0,58829.0,0.1438042]
[1724051609715,1.17903252,58830.0,58829.0,0.1438042]
[1724051609944,1.17903266,58830.0,58829.0,0.1438042]
[1724051610146,1.05187548,58830.0,58829.0,0.1438042]
[1724051610324,1.10231672,58830.0,58829.0,0.1438042]
[1724051610782,1.10231672,58830.0,58829.0,0.0009042]
[1724051610783,1.34028972,58830.0,58829.0,0.0009042]
[1724051611301,1.34406057,58830.0,58829.0,0.0009042]
[1724051611500,1.49668428,58830.0,58829.0,0.0009042]
[1724051612352,1.63215089,58830.0,58829.0,0.0009042]
[1724051612779,1.71405089,58830.0,58829.0,0.0009042]
[1724051613428,1.63415089,58830.0,58829.0,0.0009042]
[1724051613845,1.63015089,58830.0,58829.0,0.0009042]
[1724051615565,1.62952711,58830.0,58829.0,0.0009042]
[1724051616008,1.63152711,58830.0,58829.0,0.0009042]
[1724051616236,1.63352711,58830.0,58829.0,0.0009042]
[1724051620225,1.13372623,58830.0,58829.0,0.0009042]
[1724051620378,1.34536615,58830.0,58829.0,0.0009042]
[1724051620604,1.63342118,58830.0,58829.0,0.0009042]
[1724051623273,1.80539339,58830.0,58829.0,0.0009042]
[1724051624320,1.63342118,58830.0,58829.0,0.0009042]
[1724051624472,1.74952118,58830.0,58829.0,0.0009042]
[1724051624672,1.75025704,58830.0,58829.0,0.0009042]
[1724051626725,1.75025704,58830.0,58818.0,0.000902]
[1724051626726,0.915963,58819.0,58818.0,0.000902]
[1724051626928,1.2872559,58819.0,58818.0,0.000902]
[1724051627126,1.54945452,58819.0,58818.0,0.000902]
[1724051627333,1.83787399,58819.0,58818.0,0.000902]
[1724051627713,1.93993394,58819.0,58818.0,0.000902]
[1724051627890,2.21148848,58819.0,58818.0,0.000902]
[1724051628292,2.21348848,58819.0,58818.0,0.000902]
[1724051628502,2.10038848,58819.0,58818.0,0.000902]
[1724051629129,2.09707948,58819.0,58818.0,0.000902]
[1724051629380,1.59050783,58819.0,58818.0,0.000902]
[1724051629616,1.58850783,58819.0,58818.0,0.000902]
[1724051629844,1.60250783,58819.0,58818.0,0.000902]
[1724051630063,1.61350783,58819.0,58818.0,0.000902]
[1724051630307,1.83929161,58819.0,58818.0,0.000902]
[1724051630515,1.85596237,58819.0,58818.0,0.000902]
[1724051630921,1.86696237,58819.0,58818.0,0.000902]
[1724051633631,1.86793605,58819.0,58818.0,0.000902]
[1724051634664,2.10595405,58819.0,58818.0,0.000902]
[1724051636733,2.10595405,58819.0,58807.0,0.1429]
[1724051636734,0.838091,58817.0,58816.0,0.0007953]
[1724051636924,0.119031,58808.0,58807.0,0.1429]
[1724051637123,0.22750285,58808.0,58807.0,0.1429]
[1724051637334,0.43838704,58808.0,58807.0,0.1429]
[1724051637539,0.91451104,58808.0,58807.0,0.1429]
[1724051638156,0.9135222,58808.0,58807.0,0.1429]
[1724051639193,1.04404581,58808.0,58807.0,0.1429]
[1724051639923,0.9135222,58808.0,58807.0,0.1429]
[1724051644245,1.04064519,58808.0,58807.0,0.1429]
[1724051644869,0.31158539,58808.0,58807.0,0.1429]
[1724051645073,0.05084272,58808.0,58807.0,0.119032]
[1724051645278,0.05084272,58808.0,58807.0,1.643]
[1724051645498,0.05084272,58809.0,58808.0,0.143]
[1724051646805,0.001,58809.0,58808.0,0.143]
[1724051649083,0.05184797,58809.0,58808.0,0.262031]
[1724051649528,0.05184797,58809.0,58808.0,0.143]
[1724051649902,0.05184797,58809.0,58808.0,0.262031]
[1724051650157,0.001,58809.0,58808.0,0.262031]
[1724051650357,0.05184797,58809.0,58808.0,0.143]
[1724051652536,0.001,58809.0,58808.0,0.262031]
[1724051653301,0.001,58809.0,58808.0,0.616193]
[1724051654474,0.001,58809.0,58808.0,0.854255]
[1724051654994,0.001,58809.0,58808.0,1.092317]
[1724051655243,0.001,58809.0,58808.0,1.28687154]
[1724051656118,0.000822,58816.0,58815.0,0.734885]
[1724051656389,0.000822,58816.0,58815.0,0.850985]
[1724051656607,0.000822,58816.0,58815.0,2.373985]
[1724051658361,0.001822,58816.0,58815.0,2.373985]
[1724051658568,0.001822,58816.0,58815.0,2.257885]
[1724051659191,0.001822,58816.0,58815.0,1.996851]
[1724051659416,0.001822,58816.0,58815.0,0.496851]
[1724051663235,0.001822,58816.0,58815.0,1.996851]
[1724051664181,0.001822,58816.0,58815.0,0.1398]
[1724051665238,0.001822,58816.0,58815.0,0.258817]
[1724051665636,0.001822,58816.0,58815.0,0.1398]
[1724051668123,0.001822,58816.0,58815.0,1.6398]
[1724051672051,0.001822,58816.0,58815.0,0.1398]
[1724051672810,0.000822,58816.0,58815.0,0.1398]
[1724051676018,0.000822,58816.0,58815.0,1.6398]
[1724051677027,0.000822,58816.0,58815.0,1.6407042]
[1724051677227,0.000822,58816.0,58815.0,0.1407042]
[1724051677511,0.71470681,58816.0,58815.0,0.0009042]
[1724051677728,0.95453942,58816.0,58815.0,0.0009042]
[1724051677923,0.97997431,58816.0,58815.0,0.0009042]
[1724051678128,1.08728969,58816.0,58815.0,0.0009042]
[1724051678481,1.32531969,58816.0,58815.0,0.0009042]
[1724051678706,1.34989724,58816.0,58815.0,0.0009042]
[1724051678905,1.35689724,58816.0,58815.0,0.0009042]
[1724051679114,1.34989724,58816.0,58815.0,0.0009042]
[1724051679315,1.05637653,58816.0,58815.0,0.0009042]
[1724051679519,1.05837653,58816.0,58815.0,0.0009042]
[1724051679854,1.05637653,58816.0,58815.0,0.0009042]
[1724051680360,1.10692286,58816.0,58815.0,0.0009042]
[1724051680721,1.11392286,58816.0,58815.0,0.0009042]
[1724051681282,1.10892286,58816.0,58815.0,0.0009042]
[1724051681496,1.11392286,58816.0,58815.0,0.0009042]
[1724051682726,1.19062504,58816.0,58815.0,0.0009042]
[1724051683258,1.06337653,58816.0,58815.0,0.0009042]
[1724051684105,1.06564972,58816.0,58815.0,0.0009042]
[1724051684809,1.11944972,58816.0,58815.0,0.0009042]
[1724051685431,1.16997793,58816.0,58815.0,0.0009042]
[1724051685600,1.58682743,58816.0,58815.0,0.0009042]
[1724051685806,1.71446551,58816.0,58815.0,0.0009042]
[1724051686610,1.62456551,58816.0,58815.0,0.0009042]
[1724051686811,1.48681354,58816.0,58815.0,0.0009042]
[1724051688019,1.48181354,58816.0,58815.0,0.0009042]
[1724051688316,1.48108672,58816.0,58815.0,0.0009042]
[1724051691937,1.48208672,58816.0,58815.0,0.0009042]
[1724051692143,1.65364126,58816.0,58815.0,0.0009042]
[1724051693150,1.65564126,58816.0,58815.0,0.0009042]
[1724051693963,1.65264126,58816.0,58815.0,0.0009042]
[1724051694162,1.65564126,58816.0,58815.0,0.0009042]
[1724051695735,1.65264126,58816.0,58815.0,0.0009042]
[1724051696319,1.65364126,58816.0,58815.0,0.0009042]
[1724051696725,1.65564126,58816.0,58815.0,0.0009042]
[1724051698132,1.70944126,58816.0,58815.0,0.0009042]
[1724051700299,1.73554126,58816.0,58815.0,0.0009042]
[1724051700718,0.595145,58809.0,58808.0,0.1452]
[1724051700937,0.79350548,58809.0,58808.0,0.1452]
[1724051701345,0.90183276,58809.0,58808.0,0.1452]
[1724051702264,1.13989076,58809.0,58808.0,0.1452]
[1724051702671,0.595155,58808.0,58805.0,0.065]
[1724051702862,0.90191504,58808.0,58805.0,0.065]
[1724051703618,1.13997704,58808.0,58805.0,0.065]
[1724051704827,1.14097704,58808.0,58805.0,0.065]
[1724051705026,1.14097704,58808.0,58801.0,0.1429]
[1724051705027,1.19574659,58808.0,58801.0,0.1429]
[1724051705209,1.39395431,58808.0,58801.0,0.1429]
[1724051705605,1.39295431,58808.0,58801.0,0.1429]
[1724051705807,1.39095431,58808.0,58801.0,0.1429]
[1724051706040,1.33715431,58808.0,58801.0,0.1429]
[1724051706500,1.34215431,58808.0,58801.0,0.1429]
[1724051706657,1.34315431,58808.0,58801.0,0.1429]
[1724051706854,1.34715431,58808.0,58801.0,0.1429]
[1724051707272,1.46325431,58808.0,58801.0,0.1429]
[1724051707469,1.46225431,58808.0,58801.0,0.1429]
[1724051707673,1.46325431,58808.0,58801.0,0.1429]
[1724051708061,1.46225431,58808.0,58801.0,0.1429]
[1724051708466,1.46525431,58808.0,58801.0,0.1429]
[1724051708683,1.46225431,58808.0,58801.0,0.1429]
[1724051709096,1.34615431,58808.0,58807.0,0.1448042]
[1724051709327,1.19849623,58808.0,58807.0,0.1448042]
[1724051709529,1.19842082,58808.0,58807.0,0.1448042]
[1724051709974,1.19842082,58808.0,58807.0,0.0009042]
[1724051711869,1.19942082,58808.0,58807.0,0.0009042]
[1724051712310,1.35419216,58808.0,58807.0,0.0009042]
[1724051712482,1.51040659,58808.0,58807.0,0.0009042]
[1724051713653,1.50740659,58808.0,58807.0,0.0009042]
[1724051714941,1.35463525,58808.0,58807.0,0.0009042]
[1724051715346,1.50740659,58808.0,58807.0,0.0009042]
[1724051716175,1.11313016,58808.0,58807.0,0.0822042]
[1724051716395,0.37583526,58808.0,58807.0,0.1429042]
[1724051716811,0.32528562,58808.0,58807.0,0.1429042]
[1724051717229,0.32528562,58808.0,58807.0,1.6429042]
[1724051719105,0.32694254,58808.0,58807.0,1.6429042]
[1724051719307,0.37749516,58808.0,58807.0,1.6429042]
[1724051720203,0.37749516,58808.0,58807.0,0.1429042]
[1724051720618,0.37749516,58808.0,58807.0,1.6429042]
[1724051720822,0.32694254,58808.0,58807.0,1.6429042]
[1724051721022,0.4543804,58808.0,58807.0,1.6429042]
[1724051721243,0.32694254,58808.0,58807.0,1.6429042]
[1724051723607,0.32694254,58808.0,58807.0,0.1429042]
[1724051724080,0.42253565,58808.0,58807.0,0.1429042]
[1724051724288,0.42253565,58808.0,58807.0,1.6429042]
[1724051725181,0.53036498,58808.0,58807.0,1.6429042]
[1724051725390,0.56500454,58808.0,58807.0,1.6429042]
[1724051725598,1.47929194,58808.0,58807.0,0.0009042]
[1724051725809,1.47629194,58808.0,58807.0,0.0009042]
[1724051726250,1.23822994,58808.0,58807.0,0.0774042]
[1724051726461,1.23822994,58808.0,58807.0,0.1377042]
[1724051728412,1.12975809,58808.0,58807.0,0.1377042]
[1724051728618,0.85360872,58808.0,58807.0,0.1377042]
[1724051729234,0.61554672,58808.0,58807.0,0.1377042]
[1724051729435,0.74572018,58808.0,58807.0,0.1377042]
[1724051731329,0.98378218,58808.0,58807.0,0.1377042]
[1724051731572,1.3684034,58808.0,58807.0,0.0009042]
[1724051731766,1.38806903,58808.0,58807.0,0.0009042]
[1724051731967,1.38343775,58808.0,58807.0,0.0009042]
[1724051732170,1.62149975,58808.0,58807.0,0.0009042]
[1724051732303,1.38343775,58808.0,58807.0,0.0009042]
[1724051732708,1.62449975,58808.0,58807.0,0.0009042]
[1724051733702,1.49132629,58808.0,58807.0,0.0009042]
[1724051733919,1.25326429,58808.0,58807.0,0.0009042]
[1724051734963,1.25326429,58808.0,58807.0,0.0833042]
[1724051735166,1.25326429,58808.0,58807.0,0.0009042]
[1724051736313,1.24685268,58808.0,58807.0,0.0009042]
[1724051736706,0.90031883,58808.0,58807.0,0.1460042]
[1724051736910,1.0012393,58808.0,58807.0,0.1460042]
[1724051737114,1.2393013,58808.0,58807.0,0.1460042]
[1724051737313,1.23290642,58808.0,58807.0,0.1460042]
[1724051737514,1.50274304,58808.0,58807.0,0.1460042]
[1724051737770,1.26468104,58808.0,58807.0,0.1460042]
[1724051737953,1.50274304,58808.0,58807.0,0.0009042]
[1724051739675,1.33048968,58808.0,58807.0,0.0009042]
[1724051741687,1.33548968,58808.0,58807.0,0.0009042]
[1724051742084,1.57355168,58808.0,58807.0,0.0009042]
[1724051742488,1.56955168,58808.0,58807.0,0.0009042]
[1724051742720,1.56455168,58808.0,58807.0,0.0009042]
[1724051742915,1.56655168,58808.0,58807.0,0.0009042]
[1724051743074,1.57255168,58808.0,58807.0,0.0009042]
[1724051743286,1.56255168,58808.0,58807.0,0.0009042]
[1724051743484,1.57255168,58808.0,58807.0,0.0009042]
[1724051743689,0.595197,58804.0,58803.0,0.07763457]
[1724051743891,0.595197,58804.0,58793.0,0.1161]
[1724051743892,0.119054,58797.0,58793.0,0.0658]
[1724051744130,0.1941814,58796.0,58793.0,0.0658]
[1724051744328,0.1941814,58795.0,58793.0,0.0658]
[1724051744528,0.1941814,58794.0,58793.0,0.0658]
[1724051745194,0.2052759,58794.0,58793.0,0.0658]
[1724051745438,0.0110945,58794.0,58793.0,0.0658]
[1724051745640,0.119054,58797.0,58793.0,0.0658]
[1724051745833,0.0110945,58794.0,58793.0,0.0658]
[1724051746049,0.18872946,58794.0,58793.0,0.0658]
[1724051746267,0.31888296,58794.0,58793.0,0.0658]
[1724051746474,0.31788296,58794.0,58793.0,0.0658]
[1724051746896,0.31788296,58794.0,58793.0,0.1409]
[1724051747305,0.31888296,58794.0,58793.0,0.1409]
[1724051748828,0.31988296,58794.0,58793.0,0.1409]
[1724051749049,0.73960771,58794.0,58793.0,0.1409]
[1724051750922,0.6684984,58794.0,58793.0,0.1409]
[1724051751122,0.31988296,58794.0,58793.0,0.1409]
[1724051751361,0.32835609,58794.0,58793.0,0.1409]
[1724051751612,0.0130945,58794.0,58793.0,0.259961]
[1724051751814,0.08960926,58794.0,58793.0,0.498084]
[1724051752011,0.06410285,58794.0,58793.0,0.498084]
[1724051752212,0.06410285,58794.0,58793.0,0.736207]
[1724051752356,0.06068927,58794.0,58793.0,0.736207]
[1724051753166,0.06068927,58794.0,58793.0,2.236207]
[1724051753363,0.05300835,58794.0,58793.0,2.236207]
[1724051755207,0.05300835,58794.0,58793.0,1.998084]
[1724051755419,0.002,58794.0,58793.0,1.998084]
[1724051755624,0.05300846,58794.0,58793.0,1.998084]
[1724051755823,0.05300846,58794.0,58793.0,2.236207]
[1724051756231,0.002,58794.0,58793.0,2.236207]
[1724051758206,0.002,58794.0,58793.0,2.49733]
[1724051758968,0.001,58794.0,58793.0,2.49733]
[1724051759375,0.05100846,58796.0,58795.0,0.595287]
[1724051759575,0.05100846,58796.0,58795.0,0.855587]
[1724051759940,0.05100846,58796.0,58795.0,2.355587]
[1724051760141,0.05100846,58796.0,58795.0,0.855587]
[1724051760827,0.05100846,58796.0,58795.0,2.355587]
[1724051761029,0.05200846,58796.0,58795.0,2.355587]
[1724051761204,0.05300846,58796.0,58795.0,2.355587]
[1724051763154,0.002,58796.0,58795.0,2.78825654]
[1724051763759,0.002,58796.0,58795.0,3.02637154]
[1724051764227,0.001,58796.0,58795.0,3.13677294]
[1724051764428,0.000822,58803.0,58802.0,0.595217]
[1724051764633,0.000822,58803.0,58802.0,1.117104]
[1724051765499,0.000822,58803.0,58802.0,1.28865854]
[1724051766521,0.000822,58803.0,58802.0,1.46275854]
[1724051766739,0.000822,58803.0,58802.0,1.17255854]
[1724051766966,0.000822,58803.0,58802.0,1.46575854]
[1724051767166,0.001822,58803.0,58802.0,1.47175854]
[1724051767341,0.000822,58803.0,58802.0,2.96275854]
[1724051767764,0.002822,58803.0,58802.0,2.97775854]
[1724051768079,0.001822,58803.0,58802.0,2.96275854]
[1724051768286,0.001822,58803.0,58802.0,2.96875854]
[1724051768483,0.002822,58803.0,58802.0,2.97775854]
[1724051770196,0.001822,58803.0,58802.0,1.47175854]
[1724051770402,0.001822,58803.0,58802.0,1.46275854]
[1724051770634,0.001822,58803.0,58802.0,1.47175854]
[1724051770635,0.000822,58803.0,58802.0,1.47175854]
[1724051770835,0.000822,58803.0,58802.0,2.97175854]
[1724051771099,0.001822,58803.0,58802.0,2.97175854]
[1724051771300,0.001822,58803.0,58802.0,2.96275854]
[1724051771498,0.000822,58803.0,58802.0,2.97175854]
[1724051771706,0.001822,58803.0,58802.0,2.97175854]
[1724051772430,0.000822,58803.0,58802.0,2.97175854]
[1724051773435,0.000822,58803.0,58802.0,2.96275854]
[1724051773769,0.001822,58803.0,58802.0,2.97375854]
[1724051774198,0.000822,58803.0,58802.0,2.96275854]
[1724051774587,0.000822,58803.0,58802.0,2.97375854]
[1724051774588,0.001822,58803.0,58802.0,2.97375854]
[1724051775071,0.002822,58803.0,58802.0,2.97375854]
[1724051775297,0.001822,58803.0,58802.0,2.96275854]
[1724051775498,0.002822,58803.0,58802.0,2.97375854]
[1724051775673,0.001822,58803.0,58802.0,2.97375854]
[1724051776705,0.000822,58803.0,58802.0,2.96275854]
[1724051777129,0.002822,58803.0,58802.0,2.97375854]
[1724051777331,0.001822,58803.0,58802.0,2.97375854]
[1724051777532,0.000822,58803.0,58802.0,2.96275854]
[1724051777735,0.001822,58803.0,58802.0,2.96275854]
[1724051777935,0.001822,58803.0,58802.0,2.97375854]
[1724051778296,0.001822,58803.0,58802.0,2.96275854]
[1724051778521,0.000822,58803.0,58802.0,2.96275854]
[1724051778754,0.001822,58803.0,58802.0,2.97375854]
[1724051778968,0.002822,58803.0,58802.0,3.21184554]
[1724051780112,0.001822,58803.0,58802.0,3.21184554]
[1724051780480,0.001822,58803.0,58802.0,3.20084554]
[1724051780672,0.002822,58803.0,58802.0,3.21184554]
[1724051781068,0.002822,58803.0,58802.0,1.71184554]
[1724051781354,0.001822,58803.0,58802.0,1.70084554]
[1724051781558,0.001822,58803.0,58802.0,1.71284554]
[1724051781739,0.002822,58803.0,58802.0,1.71284554]
[1724051784230,0.002822,58803.0,58802.0,1.42264554]
[1724051784511,0.002822,58803.0,58802.0,1.71284554]
[1724051785229,0.002822,58803.0,58802.0,3.21284554]
[1724051785483,0.002822,58803.0,58802.0,2.97475854]
[1724051786725,0.002822,58803.0,58802.0,2.803204]
[1724051788707,0.002822,58803.0,58802.0,2.629104]
[1724051788974,0.002822,58803.0,58802.0,2.513004]
[1724051789215,0.002822,58803.0,58802.0,2.6300082]
[1724051789689,0.002822,58803.0,58802.0,1.1300082]
[1724051790139,0.002822,58803.0,58802.0,2.6300082]
[1724051793170,0.002822,58803.0,58802.0,0.8689212]
[1724051793902,0.002822,58803.0,58802.0,0.7242212]
[1724051794925,0.002822,58803.0,58802.0,0.2480472]
[1724051795155,0.002822,58803.0,58802.0,0.4861342]
[1724051799525,0.002822,58803.0,58802.0,0.2480472]
[1724051802115,0.002822,58803.0,58802.0,0.1290042]
[1724051802969,0.002822,58803.0,58802.0,0.2480472]
[1724051803373,0.05381367,58803.0,58802.0,0.0129042]
[1724051804410,0.05381367,58803.0,58802.0,0.1319472]
[1724051805457,0.05381367,58803.0,58802.0,0.0129042]
[1724051805458,0.64590887,58803.0,58802.0,0.0129042]
[1724051805674,0.85615482,58803.0,58802.0,0.0129042]
[1724051806120,0.61807182,58803.0,58802.0,0.0129042]
[1724051806330,0.66908638,58803.0,58802.0,0.0129042]
[1724051806483,0.61707182,58803.0,58802.0,0.0129042]
[1724051807042,0.61607182,58803.0,58802.0,0.0009042]
[1724051807255,0.61607182,58803.0,58802.0,0.0039042]
[1724051807513,0.62107182,58803.0,58802.0,0.0039042]
[1724051807943,0.62107182,58803.0,58802.0,0.0009042]
[1724051808362,0.93138219,58803.0,58802.0,0.0009042]
[1724051808572,0.7273837,58803.0,58802.0,0.0009042]
[1724051808781,0.7223837,58803.0,58802.0,0.0009042]
[1724051808989,0.85915482,58803.0,58802.0,0.0009042]
[1724051809206,0.62107182,58803.0,58802.0,0.0009042]
[1724051809637,0.85915482,58803.0,58802.0,0.0009042]
[1724051809840,0.72526662,58803.0,58802.0,0.0009042]
[1724051810043,0.96334962,58803.0,58802.0,0.0009042]
[1724051810252,1.10408968,58803.0,58802.0,0.0009042]
[1724051810466,1.10908968,58803.0,58802.0,0.0009042]
[1724051810712,0.97334962,58803.0,58802.0,0.0009042]
[1724051811304,0.96690114,58803.0,58802.0,0.0009042]
[1724051813201,1.17090358,58803.0,58802.0,0.0009042]
[1724051813427,1.01792344,58803.0,58802.0,0.0009042]
[1724051813691,1.17085214,58803.0,58802.0,0.0009042]
[1724051813876,1.33626853,58803.0,58802.0,0.0009042]
[1724051814108,1.41193514,58803.0,58802.0,0.0009042]
[1724051814312,1.50103409,58803.0,58802.0,0.0009042]
[1724051814536,1.49803409,58803.0,58802.0,0.0009042]
[1724051815171,1.49903409,58803.0,58802.0,0.0009042]
[1724051815374,1.67258863,58803.0,58802.0,0.0009042]
[1724051815581,1.66958863,58803.0,58802.0,0.0009042]
[1724051816001,1.67090558,58803.0,58802.0,0.0009042]
[1724051816839,1.66890558,58803.0,58802.0,0.0009042]
[1724051817062,1.66690558,58803.0,58802.0,0.0009042]
[1724051817505,1.57862138,58803.0,58802.0,0.0009042]
[1724051817923,1.40706684,58803.0,58802.0,0.0009042]
[1724051818129,1.64812761,58803.0,58802.0,0.0009042]
[1724051818596,1.40706684,58803.0,58802.0,0.0009042]
[1724051819450,1.41106684,58803.0,58802.0,0.0009042]
[1724051820328,1.4106535,58803.0,58802.0,0.0009042]
[1724051820527,1.56332885,58803.0,58802.0,0.0009042]
[1724051820960,1.65161582,58803.0,58802.0,0.0009042]
[1724051821165,1.65161582,58803.0,58802.0,0.00016553]
[1724051821785,1.65763582,58803.0,58802.0,0.00016553]
[1724051821988,1.66163582,58803.0,58802.0,0.00016553]
[1724051822162,1.65663582,58803.0,58802.0,0.00016553]
[1724051822575,1.66263582,58803.0,58802.0,0.00116553]
[1724051824050,1.65363582,58803.0,58802.0,0.00116553]
[1724051824359,1.77973582,58803.0,58802.0,0.00116553]
[1724051824514,2.01781882,58803.0,58802.0,0.00116553]
[1724051825414,2.01181882,58803.0,58802.0,0.00016553]
[1724051825615,2.00581882,58803.0,58802.0,0.00016553]
[1724051825844,2.01481882,58803.0,58802.0,0.00016553]
[1724051826046,2.02181882,58803.0,58802.0,0.00016553]
[1724051828048,2.01486702,58803.0,58802.0,0.00016553]
[1724051828842,2.00786702,58803.0,58802.0,0.00016553]
[1724051829251,2.01086702,58803.0,58802.0,0.00016553]
[1724051829656,2.02486702,58803.0,58802.0,0.00016553]
[1724051829835,2.29658585,58803.0,58802.0,2.172e-05]
[1724051830187,2.12486702,58803.0,58802.0,2.172e-05]
[1724051830803,2.58595002,58803.0,58802.0,2.172e-05]
[1724051831223,2.58595002,58803.0,58795.0,0.0009042]
[1724051831224,1.158499,58796.0,58795.0,0.00020509]
[1724051831442,1.93598182,58796.0,58795.0,0.00020509]
[1724051832345,1.92591021,58796.0,58795.0,0.00020509]
[1724051832760,1.93991021,58796.0,58795.0,0.00020509]
[1724051832909,2.11146475,58796.0,58795.0,0.00020509]
[1724051834142,2.12140864,58796.0,58795.0,0.00020509]
[1724051834570,2.13540864,58796.0,58795.0,0.00020509]
[1724051834961,3.40430864,58796.0,58795.0,0.00020509]
[1724051839139,3.16619764,58796.0,58795.0,0.00020509]
[1724051839253,3.14009764,58796.0,58795.0,0.00020509]
[1724051839458,3.45989133,58796.0,58795.0,3.166e-05]
[1724051839704,3.40430864,58796.0,58795.0,3.166e-05]
[1724051841110,0.005,58790.0,58789.0,0.00048708]
[1724051841447,1.35282621,58790.0,58789.0,0.00048708]
[1724051841563,1.58085607,58790.0,58789.0,0.00048708]
[1724051841967,1.68085607,58790.0,58789.0,0.00048708]
[1724051842195,1.81722315,58790.0,58789.0,0.00048708]
[1724051842401,1.83522315,58790.0,58789.0,0.00048708]
[1724051842803,1.71912315,58790.0,58789.0,0.00048708]
[1724051843005,1.83522315,58790.0,58789.0,0.00048708]
[1724051843206,1.84532753,58790.0,58789.0,0.00048708]
[1724051844066,1.62496045,58790.0,58789.0,0.00048708]
[1724051844618,1.50686045,58790.0,58789.0,0.00048708]
[1724051845045,1.50686045,58790.0,58789.0,0.14408708]
[1724051845046,1.49575607,58790.0,58789.0,0.14408708]
[1724051845276,1.42326816,58790.0,58789.0,0.14408708]
[1724051845452,1.65091132,58790.0,58789.0,0.14408708]
[1724051845659,1.66340316,58790.0,58789.0,0.14408708]
[1724051845858,2.01171645,58790.0,58789.0,0.14408708]
[1724051846061,2.01171645,58790.0,58789.0,0.06178708]
[1724051846270,2.01171645,58790.0,58789.0,0.00048708]